[Event "January 9 Late 2024"]
[Site "https://www.chess.com"]
[Date "2024.01.09"]
[Round "4"]
[White "Sukandar, Irine Kharisma"]
[Black "Bokros, Albert"]
[Result "1-0"]
[Board "213"]
[TimeControl "180+1"]
[WhiteFideId "7101937"]
[BlackFideId "710458"]
[WhiteElo "2427"]
[BlackElo "2207"]
[WhiteTeam "INA"]
[BlackTeam "HUN"]
[WhiteClock "0:01:12"]
[BlackClock "0:01:08"]

1. d4 {[%clk 0:03:00]}  d5 {[%clk 0:02:59]} 2. Bf4 {[%clk 0:03:01]}  Nf6 {[%clk 0:02:58]} 3. e3 {[%clk 0:03:01]}  c5 {[%clk 0:02:58]} 4. Nf3 {[%clk 0:03:00]}  Nc6 {[%clk 0:02:58]} 5. Nc3 {[%clk 0:03:00]}  Bf5 {[%clk 0:02:53]} 6. dxc5 {[%clk 0:02:50]}  e6 {[%clk 0:02:52]} 7. Nb5 {[%clk 0:02:48]}  Rc8 {[%clk 0:02:44]} 8. Bd6 {[%clk 0:02:33]}  a6 {[%clk 0:02:18]} 9. Bxf8 {[%clk 0:02:31]}  axb5 {[%clk 0:02:18]} 10. Bxg7 {[%clk 0:02:31]}  Rg8 {[%clk 0:02:18]} 11. Bh6 {[%clk 0:02:18]}  Nb4 {[%clk 0:02:12]} 12. Bxb5+ {[%clk 0:02:17]}  Ke7 {[%clk 0:02:09]} 13. Nd4 {[%clk 0:02:16]}  Rxc5 {[%clk 0:01:52]} 14. Nxf5+ {[%clk 0:02:05]}  exf5 {[%clk 0:01:53]} 15. Ba4 {[%clk 0:02:03]}  Rxg2 {[%clk 0:01:46]} 16. Qd4 {[%clk 0:01:40]}  Nxc2+ {[%clk 0:01:37]} 17. Bxc2 {[%clk 0:01:39]}  Rxc2 {[%clk 0:01:38]} 18. Qe5+ {[%clk 0:01:25]}  Kd7 {[%clk 0:01:33]} 19. Qxf5+ {[%clk 0:01:26]}  Ke7 {[%clk 0:01:33]} 20. Qxc2 {[%clk 0:01:26]}  Ne4 {[%clk 0:01:32]} 21. O-O-O {[%clk 0:01:22]}  Nxf2 {[%clk 0:01:32]} 22. Rd2 {[%clk 0:01:16]}  Nxh1 {[%clk 0:01:07]} 23. Rxg2 {[%clk 0:01:16]}  Qd6 {[%clk 0:01:08]} 24. Bg5+ {[%clk 0:01:12]}  f6 {[%clk 0:01:08]} 1-0

[Event "January 9 Late 2024"]
[Site "https://www.chess.com"]
[Date "2024.01.09"]
[Round "4"]
[White "Storn, Justin"]
[Black "Piscicelli, Daniel Orlando"]
[Result "1-0"]
[Board "215"]
[TimeControl "180+1"]
[WhiteFideId "30922720"]
[BlackFideId "101958"]
[WhiteElo "2410"]
[BlackElo "2179"]
[WhiteTeam "USA"]
[BlackTeam "ARG"]
[WhiteClock "0:00:21"]
[BlackClock "0:00:00"]

1. c4 {[%clk 0:02:56]}  Nf6 {[%clk 0:02:59]} 2. Nc3 {[%clk 0:02:57]}  g6 {[%clk 0:02:59]} 3. e4 {[%clk 0:02:55]}  Bg7 {[%clk 0:02:59]} 4. d4 {[%clk 0:02:56]}  d6 {[%clk 0:02:58]} 5. h3 {[%clk 0:02:49]}  O-O {[%clk 0:02:56]} 6. Be3 {[%clk 0:02:48]}  e5 {[%clk 0:02:57]} 7. d5 {[%clk 0:02:48]}  c6 {[%clk 0:02:55]} 8. g4 {[%clk 0:02:40]}  b6 {[%clk 0:02:28]} 9. Nge2 {[%clk 0:02:24]}  Ba6 {[%clk 0:02:26]} 10. Ng3 {[%clk 0:02:24]}  cxd5 {[%clk 0:02:20]} 11. cxd5 {[%clk 0:02:25]}  Bxf1 {[%clk 0:02:20]} 12. Kxf1 {[%clk 0:02:26]}  Nbd7 {[%clk 0:02:19]} 13. h4 {[%clk 0:02:23]}  Nc5 {[%clk 0:02:17]} 14. h5 {[%clk 0:02:21]}  Qd7 {[%clk 0:02:10]} 15. f3 {[%clk 0:02:21]}  Ne8 {[%clk 0:01:38]} 16. Qd2 {[%clk 0:02:00]}  f6 {[%clk 0:01:24]} 17. Qh2 {[%clk 0:01:27]}  g5 {[%clk 0:01:14]} 18. h6 {[%clk 0:01:18]}  Bh8 {[%clk 0:01:12]} 19. Qe2 {[%clk 0:01:06]}  Rb8 {[%clk 0:00:55]} 20. b4 {[%clk 0:00:59]}  Nb7 {[%clk 0:00:51]} 21. Kg2 {[%clk 0:00:45]}  Rc8 {[%clk 0:00:48]} 22. Nb5 {[%clk 0:00:39]}  a6 {[%clk 0:00:40]} 23. Na7 {[%clk 0:00:37]}  Ra8 {[%clk 0:00:32]} 24. Nc6 {[%clk 0:00:37]}  b5 {[%clk 0:00:27]} 25. Nf5 {[%clk 0:00:35]}  Kf7 {[%clk 0:00:25]} 26. Kg3 {[%clk 0:00:33]}  Nc7 {[%clk 0:00:21]} 27. Qh2 {[%clk 0:00:22]}  Nd8 {[%clk 0:00:19]} 28. Qh5+ {[%clk 0:00:21]}  Kg8 {[%clk 0:00:00]} 29. Nce7+ {[%clk 0:00:21]} 1-0

[Event "January 9 Late 2024"]
[Site "https://www.chess.com"]
[Date "2024.01.09"]
[Round "4"]
[White "Bueno, Alfeu Junior Varela"]
[Black "Varela La Madrid, Maria"]
[Result "0-1"]
[Board "217"]
[TimeControl "180+1"]
[WhiteFideId "2108879"]
[BlackFideId "3903346"]
[WhiteElo "2398"]
[BlackElo "2160"]
[WhiteTeam "BRA"]
[BlackTeam "VEN"]
[WhiteClock "0:00:00"]
[BlackClock "0:00:15"]

1. e4 {[%clk 0:02:53]}  c6 {[%clk 0:03:00]} 2. d4 {[%clk 0:02:53]}  d5 {[%clk 0:03:01]} 3. f3 {[%clk 0:02:53]}  e6 {[%clk 0:02:50]} 4. Nc3 {[%clk 0:02:51]}  Bb4 {[%clk 0:02:49]} 5. Bf4 {[%clk 0:02:50]}  Ne7 {[%clk 0:02:44]} 6. Ne2 {[%clk 0:02:42]}  O-O {[%clk 0:02:42]} 7. Qd3 {[%clk 0:02:33]}  b6 {[%clk 0:02:39]} 8. O-O-O {[%clk 0:02:31]}  Ba6 {[%clk 0:02:38]} 9. Qe3 {[%clk 0:02:32]}  Nd7 {[%clk 0:02:35]} 10. a3 {[%clk 0:02:22]}  Bxc3 {[%clk 0:02:33]} 11. Nxc3 {[%clk 0:02:23]}  Bxf1 {[%clk 0:02:33]} 12. Rdxf1 {[%clk 0:02:23]}  a5 {[%clk 0:02:32]} 13. h4 {[%clk 0:02:14]}  b5 {[%clk 0:02:32]} 14. h5 {[%clk 0:02:14]}  b4 {[%clk 0:02:25]} 15. Nb1 {[%clk 0:02:14]}  Nb6 {[%clk 0:02:22]} 16. g4 {[%clk 0:02:04]}  Nc4 {[%clk 0:02:20]} 17. Qd3 {[%clk 0:02:04]}  Qb6 {[%clk 0:02:10]} 18. a4 {[%clk 0:01:43]}  c5 {[%clk 0:01:56]} 19. b3 {[%clk 0:01:43]}  Na3 {[%clk 0:01:51]} 20. dxc5 {[%clk 0:01:30]}  Qxc5 {[%clk 0:01:49]} 21. h6 {[%clk 0:01:14]}  g6 {[%clk 0:01:25]} 22. Be3 {[%clk 0:01:05]}  Qc7 {[%clk 0:01:19]} 23. Bd4 {[%clk 0:01:00]}  e5 {[%clk 0:01:18]} 24. Bb2 {[%clk 0:00:58]}  Nxb1 {[%clk 0:01:15]} 25. Kxb1 {[%clk 0:00:58]}  d4 {[%clk 0:01:15]} 26. f4 {[%clk 0:00:57]}  f6 {[%clk 0:01:04]} 27. g5 {[%clk 0:00:56]}  Nc6 {[%clk 0:00:53]} 28. gxf6 {[%clk 0:00:55]}  Rxf6 {[%clk 0:00:52]} 29. fxe5 {[%clk 0:00:55]}  Qxe5 {[%clk 0:00:47]} 30. Rxf6 {[%clk 0:00:51]}  Qxf6 {[%clk 0:00:47]} 31. e5 {[%clk 0:00:50]}  Qe6 {[%clk 0:00:43]} 32. Rf1 {[%clk 0:00:41]}  Rf8 {[%clk 0:00:41]} 33. Rxf8+ {[%clk 0:00:27]}  Kxf8 {[%clk 0:00:42]} 34. Qa6 {[%clk 0:00:22]}  Qd5 {[%clk 0:00:27]} 35. Qc8+ {[%clk 0:00:16]}  Kf7 {[%clk 0:00:25]} 36. Qc7+ {[%clk 0:00:16]}  Ne7 {[%clk 0:00:25]} 37. Qd6 {[%clk 0:00:15]}  Qxd6 {[%clk 0:00:23]} 38. exd6 {[%clk 0:00:16]}  Nc6 {[%clk 0:00:22]} 39. Kc1 {[%clk 0:00:14]}  Ke6 {[%clk 0:00:22]} 40. Kd2 {[%clk 0:00:14]}  Kxd6 {[%clk 0:00:23]} 41. Bc1 {[%clk 0:00:09]}  Kd5 {[%clk 0:00:20]} 42. Ke2 {[%clk 0:00:07]}  Ke4 {[%clk 0:00:20]} 43. Bg5 {[%clk 0:00:07]}  Ne5 {[%clk 0:00:18]} 44. Bd8 {[%clk 0:00:06]}  Nc6 {[%clk 0:00:18]} 45. Bc7 {[%clk 0:00:06]}  g5 {[%clk 0:00:17]} 46. Kf2 {[%clk 0:00:03]}  d3 {[%clk 0:00:16]} 47. cxd3+ {[%clk 0:00:04]}  Kxd3 {[%clk 0:00:17]} 48. Kg3 {[%clk 0:00:05]}  Kc3 {[%clk 0:00:16]} 49. Kg4 {[%clk 0:00:06]}  Kxb3 {[%clk 0:00:16]} 50. Kxg5 {[%clk 0:00:07]}  Kxa4 {[%clk 0:00:14]} 51. Kf6 {[%clk 0:00:02]}  b3 {[%clk 0:00:14]} 52. Kg7 {[%clk 0:00:01]}  b2 {[%clk 0:00:15]} 53. Kxh7 {[%clk 0:00:00]}  b1=Q+ {[%clk 0:00:15]} 0-1

[Event "January 9 Late 2024"]
[Site "https://www.chess.com"]
[Date "2024.01.09"]
[Round "4"]
[White "Ivanov, Aleksandr"]
[Black "Sanchez Alvares, Kelvin Antonio"]
[Result "1-0"]
[Board "220"]
[TimeControl "180+1"]
[WhiteFideId "2092980"]
[BlackFideId "3906680"]
[WhiteElo "2140"]
[BlackElo "2353"]
[WhiteTeam "USA"]
[BlackTeam "VEN"]
[WhiteClock "0:00:36"]
[BlackClock "0:00:02"]

1. d4 {[%clk 0:03:00]}  d5 {[%clk 0:02:56]} 2. c4 {[%clk 0:03:00]}  c6 {[%clk 0:02:55]} 3. cxd5 {[%clk 0:02:59]}  cxd5 {[%clk 0:02:55]} 4. Bf4 {[%clk 0:02:59]}  Nf6 {[%clk 0:02:55]} 5. e3 {[%clk 0:02:59]}  Nc6 {[%clk 0:02:54]} 6. Nc3 {[%clk 0:02:58]}  Bf5 {[%clk 0:02:49]} 7. Qb3 {[%clk 0:02:55]}  Na5 {[%clk 0:02:45]} 8. Qa4+ {[%clk 0:02:53]}  Bd7 {[%clk 0:02:45]} 9. Qc2 {[%clk 0:02:53]}  Rc8 {[%clk 0:02:42]} 10. Bd3 {[%clk 0:02:49]}  b5 {[%clk 0:02:35]} 11. Qe2 {[%clk 0:02:42]}  a6 {[%clk 0:02:02]} 12. h3 {[%clk 0:02:41]}  Nc4 {[%clk 0:01:53]} 13. Nf3 {[%clk 0:02:37]}  Qa5 {[%clk 0:01:34]} 14. Bxc4 {[%clk 0:02:06]}  bxc4 {[%clk 0:01:16]} 15. O-O {[%clk 0:02:05]}  e6 {[%clk 0:01:15]} 16. Rfc1 {[%clk 0:01:54]}  Bb4 {[%clk 0:01:06]} 17. a3 {[%clk 0:01:47]}  Bxc3 {[%clk 0:00:59]} 18. Rxc3 {[%clk 0:01:44]}  Ne4 {[%clk 0:00:58]} 19. Rcc1 {[%clk 0:01:43]}  O-O {[%clk 0:00:58]} 20. Rc2 {[%clk 0:01:35]}  Ba4 {[%clk 0:00:57]} 21. Rcc1 {[%clk 0:01:34]}  Bb3 {[%clk 0:00:53]} 22. Ng5 {[%clk 0:01:30]}  Nxg5 {[%clk 0:00:39]} 23. Bxg5 {[%clk 0:01:29]}  Rb8 {[%clk 0:00:36]} 24. Be7 {[%clk 0:01:29]}  Rfc8 {[%clk 0:00:35]} 25. Bb4 {[%clk 0:01:28]}  Qb5 {[%clk 0:00:27]} 26. Bc3 {[%clk 0:01:28]}  a5 {[%clk 0:00:26]} 27. Re1 {[%clk 0:01:27]}  Rb7 {[%clk 0:00:17]} 28. Qd2 {[%clk 0:01:27]}  g6 {[%clk 0:00:17]} 29. Bxa5 {[%clk 0:01:27]}  Ba4 {[%clk 0:00:17]} 30. Bc3 {[%clk 0:01:27]}  Qb3 {[%clk 0:00:16]} 31. Qe2 {[%clk 0:01:27]}  Qc2 {[%clk 0:00:16]} 32. Qg4 {[%clk 0:01:27]}  Qf5 {[%clk 0:00:15]} 33. Qg3 {[%clk 0:01:26]}  Rcb8 {[%clk 0:00:14]} 34. Rac1 {[%clk 0:01:22]}  Bc2 {[%clk 0:00:13]} 35. Qg4 {[%clk 0:01:17]}  Qxg4 {[%clk 0:00:11]} 36. hxg4 {[%clk 0:01:17]}  Bd3 {[%clk 0:00:11]} 37. Red1 {[%clk 0:01:17]}  Ra8 {[%clk 0:00:11]} 38. Rd2 {[%clk 0:01:17]}  Kf8 {[%clk 0:00:10]} 39. f3 {[%clk 0:01:15]}  Ke7 {[%clk 0:00:10]} 40. Kf2 {[%clk 0:01:15]}  Kd7 {[%clk 0:00:11]} 41. Rh1 {[%clk 0:01:15]}  Rh8 {[%clk 0:00:09]} 42. Rh6 {[%clk 0:01:14]}  Ke7 {[%clk 0:00:08]} 43. g5 {[%clk 0:01:12]}  f6 {[%clk 0:00:07]} 44. gxf6+ {[%clk 0:01:11]}  Kxf6 {[%clk 0:00:08]} 45. Rd1 {[%clk 0:01:10]}  Kg5 {[%clk 0:00:07]} 46. Rdh1 {[%clk 0:01:10]}  Bf5 {[%clk 0:00:05]} 47. g4 {[%clk 0:01:04]}  Kf6 {[%clk 0:00:06]} 48. gxf5 {[%clk 0:01:03]}  exf5 {[%clk 0:00:07]} 49. Bb4 {[%clk 0:00:58]}  Ke6 {[%clk 0:00:07]} 50. Rxg6+ {[%clk 0:00:56]}  Kf7 {[%clk 0:00:03]} 51. Rgh6 {[%clk 0:00:53]}  Kg7 {[%clk 0:00:02]} 52. R6h5 {[%clk 0:00:48]}  Kg6 {[%clk 0:00:03]} 53. Rh6+ {[%clk 0:00:47]}  Kg7 {[%clk 0:00:03]} 54. R1h5 {[%clk 0:00:47]}  Rf7 {[%clk 0:00:03]} 55. Rd6 {[%clk 0:00:46]}  Rf6 {[%clk 0:00:03]} 56. Rxd5 {[%clk 0:00:45]}  Kg6 {[%clk 0:00:03]} 57. Rh2 {[%clk 0:00:43]}  f4 {[%clk 0:00:03]} 58. e4 {[%clk 0:00:42]}  Re8 {[%clk 0:00:02]} 59. Rg2+ {[%clk 0:00:41]}  Kf7 {[%clk 0:00:02]} 60. Rd7+ {[%clk 0:00:41]}  Ke6 {[%clk 0:00:02]} 61. Rd6+ {[%clk 0:00:40]}  Kf7 {[%clk 0:00:02]} 62. Rxf6+ {[%clk 0:00:39]}  Kxf6 {[%clk 0:00:02]} 63. Rh2 {[%clk 0:00:39]}  Kg6 {[%clk 0:00:02]} 64. d5 {[%clk 0:00:38]}  Kf6 {[%clk 0:00:03]} 65. Bc3+ {[%clk 0:00:37]}  Kg6 {[%clk 0:00:03]} 66. Rh4 {[%clk 0:00:35]}  Kg5 {[%clk 0:00:03]} 67. Rg4+ {[%clk 0:00:35]}  Kh5 {[%clk 0:00:03]} 68. Rxf4 {[%clk 0:00:35]}  Rg8 {[%clk 0:00:04]} 69. Rg4 {[%clk 0:00:35]}  Rxg4 {[%clk 0:00:03]} 70. fxg4+ {[%clk 0:00:36]}  Kxg4 {[%clk 0:00:04]} 71. d6 {[%clk 0:00:36]}  h5 {[%clk 0:00:02]} 72. d7 {[%clk 0:00:36]} 1-0

[Event "January 9 Late 2024"]
[Site "https://www.chess.com"]
[Date "2024.01.09"]
[Round "4"]
[White "Albuquerque Junior,Wellington S."]
[Black "Floresvillar Gonzalez, Luis Migu"]
[Result "1-0"]
[Board "222"]
[TimeControl "180+1"]
[WhiteFideId "2151480"]
[BlackFideId "5100542"]
[WhiteElo "2339"]
[BlackElo "2132"]
[WhiteTeam "BRA"]
[BlackTeam "MEX"]
[WhiteClock "0:00:44"]
[BlackClock "0:00:02"]

1. c4 {[%clk 0:03:00]}  c6 {[%clk 0:01:47]} 2. g3 {[%clk 0:02:59]}  d5 {[%clk 0:01:47]} 3. Nf3 {[%clk 0:03:00]}  Bf5 {[%clk 0:01:46]} 4. Bg2 {[%clk 0:02:56]}  Bxb1 {[%clk 0:01:44]} 5. Rxb1 {[%clk 0:02:56]}  e6 {[%clk 0:01:45]} 6. Qc2 {[%clk 0:02:52]}  Nf6 {[%clk 0:01:45]} 7. O-O {[%clk 0:02:52]}  Nbd7 {[%clk 0:01:44]} 8. d4 {[%clk 0:02:46]}  Bd6 {[%clk 0:01:43]} 9. b3 {[%clk 0:02:44]}  O-O {[%clk 0:01:43]} 10. Bb2 {[%clk 0:02:44]}  a5 {[%clk 0:01:42]} 11. Rfd1 {[%clk 0:02:36]}  Ne4 {[%clk 0:01:42]} 12. Ne5 {[%clk 0:02:26]}  f5 {[%clk 0:01:41]} 13. f3 {[%clk 0:02:24]}  Nef6 {[%clk 0:01:31]} 14. e3 {[%clk 0:02:20]}  Qe7 {[%clk 0:01:30]} 15. a4 {[%clk 0:02:16]}  Bb4 {[%clk 0:01:19]} 16. Nxd7 {[%clk 0:02:05]}  Qxd7 {[%clk 0:01:15]} 17. c5 {[%clk 0:02:05]}  Rae8 {[%clk 0:01:09]} 18. Bc3 {[%clk 0:02:00]}  Bxc3 {[%clk 0:01:08]} 19. Qxc3 {[%clk 0:02:01]}  Qd8 {[%clk 0:01:07]} 20. b4 {[%clk 0:01:58]}  axb4 {[%clk 0:01:06]} 21. Rxb4 {[%clk 0:01:59]}  Qc7 {[%clk 0:01:05]} 22. Rdb1 {[%clk 0:01:58]}  Rb8 {[%clk 0:00:59]} 23. Qb3 {[%clk 0:01:42]}  Qa5 {[%clk 0:00:55]} 24. Rb6 {[%clk 0:01:36]}  Qa8 {[%clk 0:00:46]} 25. Qb4 {[%clk 0:01:35]}  Rf7 {[%clk 0:00:43]} 26. a5 {[%clk 0:01:35]}  h6 {[%clk 0:00:40]} 27. a6 {[%clk 0:01:34]}  Rc7 {[%clk 0:00:26]} 28. Rxb7 {[%clk 0:01:19]}  Rbxb7 {[%clk 0:00:23]} 29. axb7 {[%clk 0:01:20]}  Qb8 {[%clk 0:00:22]} 30. Qb6 {[%clk 0:01:14]}  Nd7 {[%clk 0:00:20]} 31. Qa6 {[%clk 0:01:13]}  Kh7 {[%clk 0:00:19]} 32. Bf1 {[%clk 0:01:08]}  e5 {[%clk 0:00:17]} 33. Bd3 {[%clk 0:01:00]}  e4 {[%clk 0:00:17]} 34. fxe4 {[%clk 0:01:00]}  fxe4 {[%clk 0:00:17]} 35. Be2 {[%clk 0:01:00]}  Qd8 {[%clk 0:00:15]} 36. Bg4 {[%clk 0:00:55]}  Nb8 {[%clk 0:00:15]} 37. Qa8 {[%clk 0:00:50]}  Qg5 {[%clk 0:00:14]} 38. Qxb8 {[%clk 0:00:47]}  Qxe3+ {[%clk 0:00:14]} 39. Kg2 {[%clk 0:00:48]}  Qd2+ {[%clk 0:00:12]} 40. Kh3 {[%clk 0:00:47]}  Rxb7 {[%clk 0:00:11]} 41. Qxb7 {[%clk 0:00:44]}  Qxd4 {[%clk 0:00:10]} 42. Qxc6 {[%clk 0:00:44]}  Qd3 {[%clk 0:00:08]} 43. Qe6 {[%clk 0:00:42]}  Qxb1 {[%clk 0:00:07]} 44. Bf5+ {[%clk 0:00:43]}  g6 {[%clk 0:00:02]} 45. Qxg6+ {[%clk 0:00:43]}  Kh8 {[%clk 0:00:02]} 46. Qh7# {[%clk 0:00:44]} 1-0

[Event "January 9 Late 2024"]
[Site "https://www.chess.com"]
[Date "2024.01.09"]
[Round "4"]
[White "Lemos, Dawton Almino"]
[Black "Van Baar, Esper"]
[Result "1-0"]
[Board "224"]
[TimeControl "180+1"]
[WhiteFideId "2146797"]
[BlackFideId "1049321"]
[WhiteElo "2308"]
[BlackElo "2101"]
[WhiteTeam "BRA"]
[BlackTeam "NED"]
[WhiteClock "0:00:24"]
[BlackClock "0:00:00"]

1. e4 {[%clk 0:03:00]}  c6 {[%clk 0:02:54]} 2. d3 {[%clk 0:02:50]}  d5 {[%clk 0:02:52]} 3. Nd2 {[%clk 0:02:49]}  e5 {[%clk 0:02:47]} 4. Ngf3 {[%clk 0:02:49]}  Bd6 {[%clk 0:02:46]} 5. g3 {[%clk 0:02:48]}  Nf6 {[%clk 0:02:44]} 6. Bg2 {[%clk 0:02:47]}  O-O {[%clk 0:02:44]} 7. O-O {[%clk 0:02:45]}  Re8 {[%clk 0:02:33]} 8. h3 {[%clk 0:02:44]}  Nbd7 {[%clk 0:02:29]} 9. Qe2 {[%clk 0:02:41]}  Nf8 {[%clk 0:02:17]} 10. a4 {[%clk 0:02:33]}  a5 {[%clk 0:02:17]} 11. b3 {[%clk 0:02:10]}  Ng6 {[%clk 0:02:06]} 12. Bb2 {[%clk 0:02:08]}  Be6 {[%clk 0:01:52]} 13. Rad1 {[%clk 0:02:04]}  h6 {[%clk 0:01:46]} 14. Rfe1 {[%clk 0:02:01]}  Qd7 {[%clk 0:01:44]} 15. Kh2 {[%clk 0:01:58]}  b5 {[%clk 0:01:37]} 16. axb5 {[%clk 0:01:50]}  cxb5 {[%clk 0:01:38]} 17. exd5 {[%clk 0:01:49]}  Bxd5 {[%clk 0:01:14]} 18. Ne4 {[%clk 0:01:46]}  Bxe4 {[%clk 0:01:01]} 19. dxe4 {[%clk 0:01:44]}  Qc6 {[%clk 0:01:00]} 20. c4 {[%clk 0:01:16]}  bxc4 {[%clk 0:00:55]} 21. Qxc4 {[%clk 0:01:06]}  Qxc4 {[%clk 0:00:55]} 22. bxc4 {[%clk 0:01:07]}  Bb4 {[%clk 0:00:56]} 23. Rf1 {[%clk 0:01:05]}  a4 {[%clk 0:00:56]} 24. Ne1 {[%clk 0:00:58]}  a3 {[%clk 0:00:54]} 25. Ba1 {[%clk 0:00:58]}  Red8 {[%clk 0:00:45]} 26. Nd3 {[%clk 0:00:56]}  Bd6 {[%clk 0:00:33]} 27. f4 {[%clk 0:00:55]}  Re8 {[%clk 0:00:26]} 28. c5 {[%clk 0:00:40]}  Bc7 {[%clk 0:00:24]} 29. f5 {[%clk 0:00:33]}  Ne7 {[%clk 0:00:24]} 30. Nxe5 {[%clk 0:00:31]}  Bxe5 {[%clk 0:00:18]} 31. Bxe5 {[%clk 0:00:31]}  a2 {[%clk 0:00:05]} 32. Ra1 {[%clk 0:00:24]}  Nc6 {[%clk 0:00:04]} 33. Bxf6 {[%clk 0:00:24]}  gxf6 {[%clk 0:00:04]} 34. e5 {[%clk 0:00:24]}  Ra6 {[%clk 0:00:03]} 35. exf6 {[%clk 0:00:24]}  Nd4 {[%clk 0:00:03]} 36. Rf2 {[%clk 0:00:20]}  Nb3 {[%clk 0:00:03]} 37. Raxa2 {[%clk 0:00:20]}  Rxf6 {[%clk 0:00:03]} 38. Rac2 {[%clk 0:00:19]}  Rc8 {[%clk 0:00:02]} 39. c6 {[%clk 0:00:20]}  Nd4 {[%clk 0:00:02]} 40. Rc4 {[%clk 0:00:20]}  Nxc6 {[%clk 0:00:02]} 41. Rfc2 {[%clk 0:00:20]}  Rxf5 {[%clk 0:00:01]} 42. Rxc6 {[%clk 0:00:20]}  Rxc6 {[%clk 0:00:02]} 43. Rxc6 {[%clk 0:00:21]}  Rg5 {[%clk 0:00:02]} 44. Rc4 {[%clk 0:00:21]}  Kg7 {[%clk 0:00:02]} 45. Rf4 {[%clk 0:00:22]}  Rg6 {[%clk 0:00:02]} 46. h4 {[%clk 0:00:22]}  h5 {[%clk 0:00:02]} 47. Kh3 {[%clk 0:00:23]}  f6 {[%clk 0:00:02]} 48. Bf3 {[%clk 0:00:24]}  Kh6 {[%clk 0:00:00]} 49. Rf5 {[%clk 0:00:24]} 1-0

[Event "January 9 Late 2024"]
[Site "https://www.chess.com"]
[Date "2024.01.09"]
[Round "4"]
[White "Szalay-Ocsak, Bank"]
[Black "Sultanbek, Zeinep"]
[Result "0-1"]
[Board "225"]
[TimeControl "180+1"]
[WhiteFideId "784923"]
[BlackFideId "13710419"]
[WhiteElo "2093"]
[BlackElo "2298"]
[WhiteTeam "HUN"]
[BlackTeam "KAZ"]
[WhiteClock "0:00:00"]
[BlackClock "0:00:34"]

1. b3 {[%clk 0:03:00]}  e5 {[%clk 0:02:58]} 2. Bb2 {[%clk 0:03:00]}  d6 {[%clk 0:02:59]} 3. e3 {[%clk 0:02:47]}  Nf6 {[%clk 0:02:54]} 4. d3 {[%clk 0:02:44]}  g6 {[%clk 0:02:50]} 5. Nd2 {[%clk 0:02:40]}  Bg7 {[%clk 0:02:50]} 6. Be2 {[%clk 0:02:39]}  O-O {[%clk 0:02:50]} 7. Ngf3 {[%clk 0:02:34]}  Nc6 {[%clk 0:02:50]} 8. a3 {[%clk 0:02:28]}  Qe7 {[%clk 0:02:40]} 9. b4 {[%clk 0:02:24]}  a6 {[%clk 0:02:38]} 10. c4 {[%clk 0:02:24]}  Nd7 {[%clk 0:02:19]} 11. b5 {[%clk 0:02:13]}  axb5 {[%clk 0:02:18]} 12. cxb5 {[%clk 0:02:13]}  Nd8 {[%clk 0:02:19]} 13. Rc1 {[%clk 0:02:02]}  Ne6 {[%clk 0:02:07]} 14. g4 {[%clk 0:01:26]}  b6 {[%clk 0:01:58]} 15. h4 {[%clk 0:01:18]}  Bb7 {[%clk 0:01:57]} 16. h5 {[%clk 0:01:16]}  f5 {[%clk 0:01:15]} 17. gxf5 {[%clk 0:01:08]}  gxf5 {[%clk 0:01:16]} 18. h6 {[%clk 0:01:09]}  Bf6 {[%clk 0:01:15]} 19. Rg1+ {[%clk 0:01:05]}  Kh8 {[%clk 0:01:12]} 20. e4 {[%clk 0:01:03]}  fxe4 {[%clk 0:01:07]} 21. Nxe4 {[%clk 0:01:00]}  Bxe4 {[%clk 0:00:58]} 22. dxe4 {[%clk 0:01:00]}  Ndc5 {[%clk 0:00:58]} 23. Bc4 {[%clk 0:00:41]}  Bg5 {[%clk 0:00:48]} 24. Bxe6 {[%clk 0:00:38]}  Bxc1 {[%clk 0:00:46]} 25. Nxe5 {[%clk 0:00:25]}  Bxb2 {[%clk 0:00:43]} 26. Qg4 {[%clk 0:00:05]}  Bxe5 {[%clk 0:00:35]} 27. Qg5 {[%clk 0:00:00]}  Qxg5 {[%clk 0:00:34]} 0-1

[Event "January 9 Late 2024"]
[Site "https://www.chess.com"]
[Date "2024.01.09"]
[Round "4"]
[White "Zhukov, Maksim"]
[Black "Diaz Garcia, Lianet"]
[Result "0-1"]
[Board "226"]
[TimeControl "180+1"]
[WhiteFideId "34181790"]
[BlackFideId "3526747"]
[WhiteElo "2291"]
[BlackElo "2067"]
[WhiteTeam "RUS"]
[BlackTeam "CUB"]
[WhiteClock "0:00:00"]
[BlackClock "0:00:25"]

1. e4 {[%clk 0:03:00]}  c5 {[%clk 0:02:59]} 2. Nf3 {[%clk 0:02:59]}  d6 {[%clk 0:02:57]} 3. Bb5+ {[%clk 0:02:55]}  Bd7 {[%clk 0:02:56]} 4. Bxd7+ {[%clk 0:02:54]}  Qxd7 {[%clk 0:02:56]} 5. c4 {[%clk 0:02:42]}  Nc6 {[%clk 0:02:56]} 6. Nc3 {[%clk 0:02:30]}  g6 {[%clk 0:02:50]} 7. d4 {[%clk 0:02:24]}  cxd4 {[%clk 0:02:49]} 8. Nxd4 {[%clk 0:02:19]}  Bg7 {[%clk 0:02:49]} 9. Be3 {[%clk 0:02:17]}  Nf6 {[%clk 0:02:47]} 10. f3 {[%clk 0:02:16]}  O-O {[%clk 0:02:47]} 11. b3 {[%clk 0:02:14]}  a6 {[%clk 0:02:39]} 12. Rc1 {[%clk 0:02:11]}  Nxd4 {[%clk 0:02:37]} 13. Bxd4 {[%clk 0:02:04]}  Rab8 {[%clk 0:02:37]} 14. O-O {[%clk 0:02:04]}  b5 {[%clk 0:02:36]} 15. cxb5 {[%clk 0:02:02]}  axb5 {[%clk 0:02:37]} 16. Qd3 {[%clk 0:01:54]}  Qb7 {[%clk 0:02:31]} 17. a4 {[%clk 0:01:45]}  bxa4 {[%clk 0:02:28]} 18. bxa4 {[%clk 0:01:45]}  Nd7 {[%clk 0:02:23]} 19. a5 {[%clk 0:01:42]}  Bxd4+ {[%clk 0:02:19]} 20. Qxd4 {[%clk 0:01:42]}  Qa6 {[%clk 0:02:14]} 21. Nd5 {[%clk 0:01:38]}  e5 {[%clk 0:01:53]} 22. Qd2 {[%clk 0:01:35]}  Nc5 {[%clk 0:01:21]} 23. Nf6+ {[%clk 0:01:12]}  Kg7 {[%clk 0:01:16]} 24. Qg5 {[%clk 0:00:58]}  Qxa5 {[%clk 0:00:54]} 25. Nh5+ {[%clk 0:00:56]}  Kg8 {[%clk 0:00:46]} 26. Nf6+ {[%clk 0:00:31]}  Kg7 {[%clk 0:00:45]} 27. h4 {[%clk 0:00:29]}  h6 {[%clk 0:00:34]} 28. Nh5+ {[%clk 0:00:27]}  Kh7 {[%clk 0:00:32]} 29. Nf6+ {[%clk 0:00:20]}  Kg7 {[%clk 0:00:32]} 30. Nh5+ {[%clk 0:00:00]}  Kh7 {[%clk 0:00:25]} 0-1